[Event "CCT Chessable Masters Play-In 2025"]
[Site "Online"]
[Date "2025.02.17"]
[Round "3.62"]
[White "Pultinevicius, Paulius"]
[Black "Keymer, Vincent"]
[Result "1-0"]
[ECO "E10"]
[WhiteElo "2566"]
[BlackElo "2731"]
[PlyCount "173"]
[EventDate "2025.02.13"]
[EventType "swiss"]
[EventCountry "NET"]
[TimeControl "600"]
[WhiteClock "0:00:02"]
[BlackClock "0:00:02"]

1. d4 {[%emt 0:00:01]} Nf6 {[%emt 0:00:02]} 2. c4 {[%emt 0:00:02]} e6 {[%emt 0:00:01]} 3. Nf3 {[%emt 0:00:01]} h6 {[%emt 0:00:02]} 4. g3 {[%emt 0:00:01]} Bb4+ {[%emt 0:00:02]} 5. Nbd2 {[%emt 0:00:03]} d6 {[%emt 0:00:02]} 6. Bg2 {[%emt 0:00:02]} Nbd7 {[%emt 0:00:02]} 7. O-O {[%emt 0:00:00]} O-O {[%emt 0:00:09]} 8. Nb3 {[%emt 0:00:03]} c6 {[%emt 0:00:20]} 9. a3 {[%emt 0:00:05]} Ba5 {[%emt 0:00:01]} 10. Nxa5 {[%emt 0:00:00]} Qxa5 {[%emt 0:00:00]} 11. Bf4 {[%emt 0:00:01]} e5 {[%emt 0:00:03]} 12. Bd2 {[%emt 0:00:31]} Qc7 {[%emt 0:00:02]} 13. Qc2 {[%emt 0:00:01]} Re8 {[%emt 0:00:04]} 14. e4 {[%emt 0:00:10]} a5 {[%emt 0:00:12]} 15. b3 {[%emt 0:00:11]} b6 {[%emt 0:00:18]} 16. Rfe1 {[%emt 0:00:20]} Nf8 {[%emt 0:00:06]} 17. c5 {[%emt 0:00:03]} dxc5 {[%emt 0:00:19]} 18. dxc5 {[%emt 0:00:47]} b5 {[%emt 0:00:03]} 19. Bc3 {[%emt 0:00:11]} Ng6 {[%emt 0:00:14]} 20. h3 {[%emt 0:00:24]} Be6 {[%emt 0:00:04]} 21. Qb2 {[%emt 0:00:02]} Nd7 {[%emt 0:00:06]} 22. b4 {[%emt 0:00:02]} f6 {[%emt 0:00:11]} 23. h4 {[%emt 0:00:10]} Nh8 {[%emt 0:00:19]} 24. Rad1 {[%emt 0:00:12]} Nf7 {[%emt 0:00:05]} 25. Nh2 {[%emt 0:00:13]} axb4 {[%emt 0:00:16]} 26. Bxb4 {[%emt 0:00:00]} Nf8 {[%emt 0:00:06]} 27. Nf1 {[%emt 0:00:01]} Red8 {[%emt 0:00:25]} 28. Ne3 {[%emt 0:00:01]} Rxd1 {[%emt 0:00:02]} 29. Rxd1 {[%emt 0:00:03]} Rd8 {[%emt 0:00:00]} 30. Ra1 {[%emt 0:00:43]} Qa7 {[%emt 0:00:08]} 31. Nf5 {[%emt 0:00:09]} g6 {[%emt 0:00:13]} 32. Nd6 {[%emt 0:00:11]} Nxd6 {[%emt 0:00:02]} 33. cxd6 {[%emt 0:00:00]} c5 {[%emt 0:00:07]} 34. Bd2 {[%emt 0:00:01]} Bc4 {[%emt 0:00:04]} 35. Bxh6 {[%emt 0:00:05]} Ne6 {[%emt 0:00:09]} 36. a4 {[%emt 0:00:42]} b4 {[%emt 0:00:03]} 37. Rc1 {[%emt 0:00:00]} Qa6 {[%emt 0:00:03]} 38. Qc2 {[%emt 0:00:24]} b3 {[%emt 0:00:11]} 39. Qb2 {[%emt 0:00:49]} Nd4 {[%emt 0:00:30]} 40. Kh2 {[%emt 0:00:13]} Rxd6 {[%emt 0:00:08]} 41. f4 {[%emt 0:00:11]} Kh7 {[%emt 0:00:32]} 42. Bf8 {[%emt 0:00:06]} Rc6 {[%emt 0:00:04]} 43. Qd2 {[%emt 0:00:25]} exf4 {[%emt 0:00:30]} 44. Qxf4 {[%emt 0:00:06]} Kg8 {[%emt 0:00:40]} 45. Qh6 {[%emt 0:00:01]} Rc7 {[%emt 0:00:28]} 46. e5 {[%emt 0:00:53]} fxe5 {[%emt 0:00:01]} 47. Be4 {[%emt 0:00:21]} b2 {[%emt 0:01:01]} 48. Rb1 {[%emt 0:00:04]} Qf6 {[%emt 0:00:03]} 49. Rxb2 {[%emt 0:00:12]} Qxf8 {[%emt 0:00:02]} 50. Qxg6+ {[%emt 0:00:01]} Rg7 {[%emt 0:00:01]} 51. Qh5 {[%emt 0:00:04]} Nb3 {[%emt 0:00:56]} 52. Rc2 {[%emt 0:00:06]} Bf7 {[%emt 0:00:08]} 53. Qxe5 {[%emt 0:00:02]} Qe8 {[%emt 0:00:01]} 54. Qxe8+ {[%emt 0:00:05]} Bxe8 {[%emt 0:00:00]} 55. a5 {[%emt 0:00:02]} Ra7 {[%emt 0:00:02]} 56. Bd5+ {[%emt 0:00:03]} Bf7 {[%emt 0:00:01]} 57. Bxb3 {[%emt 0:00:01]} Bxb3 {[%emt 0:00:00]} 58. Rxc5 {[%emt 0:00:00]} Rf7 {[%emt 0:00:01]} 59. Rg5+ {[%emt 0:00:00]} Kh7 {[%emt 0:00:01]} 60. Rb5 {[%emt 0:00:00]} Bc4 {[%emt 0:00:02]} 61. Rc5 {[%emt 0:00:01]} Ba6 {[%emt 0:00:00]} 62. g4 {[%emt 0:00:00]} Rf2+ {[%emt 0:00:01]} 63. Kg3 {[%emt 0:00:01]} Rf7 {[%emt 0:00:01]} 64. h5 {[%emt 0:00:00]} Rb7 {[%emt 0:00:00]} 65. Rc6 {[%emt 0:00:02]} Bb5 {[%emt 0:00:02]} 66. Rb6 {[%emt 0:00:01]} Rxb6 {[%emt 0:00:00]} 67. axb6 {[%emt 0:00:00]} Bc6 {[%emt 0:00:00]} 68. g5 {[%emt 0:00:00]} Kg7 {[%emt 0:00:01]} 69. Kf4 {[%emt 0:00:01]} Kh7 {[%emt 0:00:00]} 70. Ke5 {[%emt 0:00:00]} Bb7 {[%emt 0:00:00]} 71. Kd6 {[%emt 0:00:01]} Kg7 {[%emt 0:00:01]} 72. Kc7 {[%emt 0:00:00]} Bf3 {[%emt 0:00:00]} 73. h6+ {[%emt 0:00:01]} Kg6 {[%emt 0:00:01]} 74. b7 {[%emt 0:00:00]} Bxb7 {[%emt 0:00:00]} 75. Kxb7 {[%emt 0:00:00]} Kh7 {[%emt 0:00:01]} 76. Kc6 {[%emt 0:00:01]} Kg6 {[%emt 0:00:00]} 77. Kd5 {[%emt 0:00:00]} Kh7 {[%emt 0:00:00]} 78. Ke5 {[%emt 0:00:01]} Kg6 {[%emt 0:00:00]} 79. Kf4 {[%emt 0:00:00]} Kh7 {[%emt 0:00:00]} 80. Kf5 {[%emt 0:00:01]} Kh8 {[%emt 0:00:01]} 81. g6 {[%emt 0:00:00]} Kg8 {[%emt 0:00:00]} 82. Kf6 {[%emt 0:00:00]} Kh8 {[%emt 0:00:00]} 83. g7+ {[%emt 0:00:03]} Kh7 {[%emt 0:00:00]} 84. Kf7 {[%emt 0:00:02]} Kxh6 {[%emt 0:00:00]} 85. g8=Q {[%emt 0:00:00]} Kh5 {[%emt 0:00:01]} 86. Qg3 {[%emt 0:00:01]} Kh6 {[%emt 0:00:00]} 87. Qg6# {[%emt 0:00:00]} 1-0

[Event "CCT Chessable Masters Play-In 2025"]
[Site "Online"]
[Date "2025.02.17"]
[Round "3.63"]
[White "Pranav, V."]
[Black "Nasuta, Grzegorz"]
[Result "1-0"]
[ECO "C78"]
[WhiteElo "2615"]
[BlackElo "2506"]
[PlyCount "89"]
[EventDate "2025.02.13"]
[EventType "swiss"]
[EventCountry "NET"]
[TimeControl "600"]
[WhiteClock "0:00:19"]

1. e4 {[%emt 0:00:16]} e5 {[%emt 0:00:02]} 2. Nf3 {[%emt 0:00:02]} Nc6 {[%emt 0:00:00]} 3. Bb5 {[%emt 0:00:01]} a6 {[%emt 0:00:02]} 4. Ba4 {[%emt 0:00:01]} Nf6 {[%emt 0:00:01]} 5. O-O {[%emt 0:00:01]} b5 {[%emt 0:00:01]} 6. Bb3 {[%emt 0:00:01]} Bc5 {[%emt 0:00:00]} 7. a4 {[%emt 0:00:02]} Rb8 {[%emt 0:00:02]} 8. c3 {[%emt 0:00:01]} d6 {[%emt 0:00:01]} 9. d4 {[%emt 0:00:04]} Bb6 {[%emt 0:00:01]} 10. a5 {[%emt 0:00:07]} Ba7 {[%emt 0:00:00]} 11. h3 {[%emt 0:00:01]} Bb7 {[%emt 0:00:06]} 12. Be3 {[%emt 0:00:10]} Nxe4 {[%emt 0:00:07]} 13. Re1 {[%emt 0:00:02]} exd4 {[%emt 0:00:05]} 14. cxd4 {[%emt 0:00:21]} d5 {[%emt 0:00:02]} 15. Nbd2 {[%emt 0:00:03]} O-O {[%emt 0:00:14]} 16. Nxe4 {[%emt 0:00:05]} dxe4 {[%emt 0:00:00]} 17. Ng5 {[%emt 0:00:00]} Qe7 {[%emt 0:00:39]} 18. Qh5 {[%emt 0:00:22]} h6 {[%emt 0:00:01]} 19. Nxf7 {[%emt 0:00:42]} Rxf7 {[%emt 0:00:00]} 20. Bxf7+ {[%emt 0:00:02]} Qxf7 {[%emt 0:00:01]} 21. Qxf7+ {[%emt 0:00:00]} Kxf7 {[%emt 0:00:01]} 22. d5 {[%emt 0:00:00]} Bxe3 {[%emt 0:00:01]} 23. dxc6 {[%emt 0:00:01]} Bd4 {[%emt 0:00:00]} 24. cxb7 {[%emt 0:00:02]} Bxb2 {[%emt 0:00:01]} 25. Rad1 {[%emt 0:00:03]} Rxb7 {[%emt 0:00:11]} 26. Rxe4 {[%emt 0:00:06]} Bc3 {[%emt 0:00:02]} 27. Rd7+ {[%emt 0:00:16]} Kf6 {[%emt 0:00:07]} 28. Rde7 {[%emt 0:00:29]} b4 {[%emt 0:01:19]} 29. R4e6+ {[%emt 0:02:05]} Kf5 {[%emt 0:00:02]} 30. Rc6 {[%emt 0:01:07]} b3 {[%emt 0:01:24]} 31. Rc5+ {[%emt 0:00:29]} Kf6 {[%emt 0:00:55]} 32. Rexc7 {[%emt 0:00:02]} Rb4 {[%emt 0:03:44]} 33. R5c6+ {[%emt 0:01:11]} Kf5 {[%emt 0:00:04]} 34. Rc5+ {[%emt 0:00:43]} Be5 {[%emt 0:00:08]} 35. Re7 {[%emt 0:00:01]} Re4 {[%emt 0:00:18]} 36. g4+ {[%emt 0:00:11]} Kf6 {[%emt 0:00:10]} 37. Rb7 {[%emt 0:00:03]} b2 {[%emt 0:00:01]} 38. Kg2 {[%emt 0:00:12]} Bd4 {[%emt 0:00:00]} 39. Rc6+ {[%emt 0:00:01]} Ke5 {[%emt 0:00:03]} 40. Rxa6 {[%emt 0:00:07]} Rf4 {[%emt 0:00:00]} 41. f3 {[%emt 0:00:03]} Kd5 {[%emt 0:00:01]} 42. Rab6 {[%emt 0:00:04]} Bxb6 {[%emt 0:00:01]} 43. Rxb6 {[%emt 0:00:00]} Ra4 {[%emt 0:00:01]} 44. Rb5+ {[%emt 0:00:01]} Ke6 45. Rxb2 {[%emt 0:00:00]} 1-0

[Event "CCT Chessable Masters Play-In 2025"]
[Site "Online"]
[Date "2025.02.17"]
[Round "3.64"]
[White "Bachmann, Axel"]
[Black "Suleymanli, Aydin"]
[Result "0-1"]
[ECO "E10"]
[WhiteElo "2570"]
[BlackElo "2623"]
[PlyCount "54"]
[EventDate "2025.02.13"]
[EventType "swiss"]
[EventCountry "NET"]
[TimeControl "600"]
[WhiteClock "0:04:16"]
[BlackClock "0:04:20"]

1. Nf3 {[%emt 0:00:02]} c5 {[%emt 0:00:05]} 2. c4 {[%emt 0:00:02]} Nf6 {[%emt 0:00:05]} 3. Nc3 {[%emt 0:00:02]} a6 {[%emt 0:00:13]} 4. d4 {[%emt 0:00:11]} e6 {[%emt 0:00:02]} 5. d5 {[%emt 0:00:30]} exd5 {[%emt 0:00:02]} 6. cxd5 {[%emt 0:00:00]} b5 {[%emt 0:00:02]} 7. e4 {[%emt 0:00:02]} b4 {[%emt 0:00:04]} 8. Na4 {[%emt 0:00:01]} d6 {[%emt 0:00:27]} 9. Bc4 {[%emt 0:00:23]} Nxe4 {[%emt 0:00:22]} 10. O-O {[%emt 0:00:07]} Be7 {[%emt 0:00:03]} 11. Re1 {[%emt 0:00:02]} f5 {[%emt 0:00:13]} 12. Ng5 {[%emt 0:01:07]} Bxg5 {[%emt 0:00:34]} 13. Bxg5 {[%emt 0:00:03]} Qxg5 {[%emt 0:00:04]} 14. Nb6 {[%emt 0:00:00]} O-O {[%emt 0:00:29]} 15. Nxa8 {[%emt 0:00:03]} Qd8 {[%emt 0:00:17]} 16. a3 {[%emt 0:01:08]} bxa3 {[%emt 0:00:34]} 17. Rxa3 {[%emt 0:00:19]} Bb7 {[%emt 0:00:02]} 18. Rh3 {[%emt 0:00:38]} Bxa8 {[%emt 0:00:41]} 19. Qh5 {[%emt 0:00:02]} h6 {[%emt 0:00:05]} 20. f3 {[%emt 0:00:13]} Ng5 {[%emt 0:00:09]} 21. Rg3 {[%emt 0:00:01]} f4 {[%emt 0:00:02]} 22. Rg4 {[%emt 0:00:03]} Nd7 {[%emt 0:00:02]} 23. Qg6 {[%emt 0:00:15]} Ne5 {[%emt 0:00:22]} 24. Rxe5 {[%emt 0:00:03]} dxe5 {[%emt 0:00:00]} 25. d6+ {[%emt 0:00:07]} Kh8 {[%emt 0:00:02]} 26. h4 {[%emt 0:00:02]} Rf6 {[%emt 0:00:30]} 27. Qh5 {[%emt 0:00:18]} Nxf3+ {[%emt 0:00:09]} 0-1

[Event "CCT Chessable Masters Play-In 2025"]
[Site "Online"]
[Date "2025.02.17"]
[Round "3.65"]
[White "Donchenko, Alexander"]
[Black "Perez Ponsa, Federico"]
[Result "1-0"]
[ECO "B92"]
[WhiteElo "2632"]
[BlackElo "2528"]
[PlyCount "63"]
[EventDate "2025.02.13"]
[EventType "swiss"]
[EventCountry "NET"]
[TimeControl "600"]
[WhiteClock "0:05:42"]
[BlackClock "0:03:55"]

1. e4 {[%emt 0:00:01]} c5 {[%emt 0:00:06]} 2. Nf3 {[%emt 0:00:01]} d6 {[%emt 0:00:11]} 3. d4 {[%emt 0:00:01]} cxd4 {[%emt 0:00:00]} 4. Nxd4 {[%emt 0:00:01]} Nf6 {[%emt 0:00:01]} 5. Nc3 {[%emt 0:00:00]} a6 {[%emt 0:00:01]} 6. Be2 {[%emt 0:00:06]} e5 {[%emt 0:00:02]} 7. Nf3 {[%emt 0:00:01]} Be7 {[%emt 0:00:03]} 8. Bg5 {[%emt 0:00:07]} Be6 {[%emt 0:00:07]} 9. Bxf6 {[%emt 0:00:01]} Bxf6 {[%emt 0:00:00]} 10. Qd3 {[%emt 0:00:01]} Be7 {[%emt 0:00:05]} 11. O-O {[%emt 0:00:10]} Nd7 {[%emt 0:00:13]} 12. Rfd1 {[%emt 0:00:02]} Qc7 {[%emt 0:00:08]} 13. Nd5 {[%emt 0:00:18]} Bxd5 {[%emt 0:00:03]} 14. Qxd5 {[%emt 0:00:00]} Nf6 {[%emt 0:00:08]} 15. Qd3 {[%emt 0:00:05]} d5 {[%emt 0:00:09]} 16. exd5 {[%emt 0:00:19]} e4 {[%emt 0:00:01]} 17. Qe3 {[%emt 0:00:01]} O-O-O {[%emt 0:00:35]} 18. Ng5 {[%emt 0:00:14]} Bc5 {[%emt 0:00:04]} 19. Qc3 {[%emt 0:00:21]} h6 {[%emt 0:00:22]} 20. Nxf7 {[%emt 0:00:08]} e3 {[%emt 0:00:21]} 21. Nxd8 {[%emt 0:01:25]} exf2+ {[%emt 0:00:49]} 22. Kf1 {[%emt 0:00:03]} Rxd8 {[%emt 0:00:06]} 23. d6 {[%emt 0:00:05]} Rxd6 {[%emt 0:00:13]} 24. Rxd6 {[%emt 0:00:02]} Qxd6 {[%emt 0:00:00]} 25. Rd1 {[%emt 0:00:12]} Qc7 {[%emt 0:00:28]} 26. b4 {[%emt 0:00:08]} Bb6 {[%emt 0:00:02]} 27. Qxc7+ {[%emt 0:00:05]} Kxc7 {[%emt 0:00:02]} 28. Bf3 {[%emt 0:00:03]} g5 {[%emt 0:00:09]} 29. c4 {[%emt 0:00:05]} g4 {[%emt 0:00:03]} 30. c5 {[%emt 0:00:02]} Ba7 {[%emt 0:00:05]} 31. Rd6 {[%emt 0:00:08]} Ne8 {[%emt 0:01:28]} 32. Re6 {[%emt 0:00:02]} 1-0

[Event "CCT Chessable Masters Play-In 2025"]
[Site "Online"]
[Date "2025.02.17"]
[Round "3.66"]
[White "Lagarde, Maxime"]
[Black "Pranav Anand"]
[Result "1/2-1/2"]
[ECO "A28"]
[WhiteElo "2604"]
[BlackElo "2538"]
[PlyCount "86"]
[EventDate "2025.02.13"]
[EventType "swiss"]
[EventCountry "NET"]
[TimeControl "600"]
[WhiteClock "0:03:51"]
[BlackClock "0:03:33"]

1. c4 {[%emt 0:00:57]} e5 {[%emt 0:00:05]} 2. Nc3 {[%emt 0:00:02]} Nf6 {[%emt 0:00:05]} 3. Nf3 {[%emt 0:00:01]} Nc6 {[%emt 0:00:01]} 4. d3 {[%emt 0:00:01]} d5 {[%emt 0:00:01]} 5. cxd5 {[%emt 0:00:01]} Nxd5 {[%emt 0:00:01]} 6. e4 {[%emt 0:00:01]} Nf6 {[%emt 0:00:01]} 7. Be2 {[%emt 0:00:02]} Bc5 {[%emt 0:00:08]} 8. O-O {[%emt 0:00:02]} O-O {[%emt 0:00:01]} 9. Be3 {[%emt 0:00:01]} Bb6 {[%emt 0:00:01]} 10. Rc1 {[%emt 0:00:02]} Bg4 {[%emt 0:00:11]} 11. Na4 {[%emt 0:00:08]} Bxf3 {[%emt 0:00:03]} 12. Bxf3 {[%emt 0:00:04]} Qe7 {[%emt 0:00:13]} 13. Nc5 {[%emt 0:00:09]} Rab8 {[%emt 0:00:06]} 14. Nxb7 {[%emt 0:00:41]} Nd4 {[%emt 0:00:18]} 15. Bxd4 {[%emt 0:00:01]} Bxd4 {[%emt 0:00:16]} 16. Na5 {[%emt 0:00:02]} Rxb2 {[%emt 0:00:01]} 17. Nc6 {[%emt 0:00:06]} Qd6 {[%emt 0:00:09]} 18. Qa4 {[%emt 0:00:05]} Bb6 {[%emt 0:00:16]} 19. d4 {[%emt 0:00:02]} Bxd4 {[%emt 0:00:09]} 20. Nxd4 {[%emt 0:00:01]} exd4 {[%emt 0:00:48]} 21. Qxa7 {[%emt 0:00:45]} Nd7 {[%emt 0:00:02]} 22. Qxc7 {[%emt 0:00:05]} Qxc7 {[%emt 0:00:01]} 23. Rxc7 {[%emt 0:00:01]} Ne5 {[%emt 0:00:01]} 24. Rd1 {[%emt 0:00:39]} Rd8 {[%emt 0:00:27]} 25. h4 {[%emt 0:00:20]} d3 {[%emt 0:00:14]} 26. a4 {[%emt 0:00:26]} Ra2 {[%emt 0:00:02]} 27. Rc5 {[%emt 0:00:05]} f6 {[%emt 0:00:08]} 28. a5 {[%emt 0:00:04]} Ra8 {[%emt 0:00:20]} 29. Rxe5 {[%emt 0:00:51]} fxe5 {[%emt 0:00:03]} 30. Rxd3 {[%emt 0:00:00]} R8xa5 {[%emt 0:00:09]} 31. Bg4 {[%emt 0:00:03]} Rb2 {[%emt 0:00:18]} 32. Be6+ {[%emt 0:00:07]} Kf8 {[%emt 0:00:02]} 33. Rf3+ {[%emt 0:00:02]} Ke7 {[%emt 0:00:01]} 34. Bd5 {[%emt 0:00:02]} Rxd5 {[%emt 0:01:36]} 35. exd5 {[%emt 0:00:00]} Rd2 {[%emt 0:00:00]} 36. Ra3 {[%emt 0:00:03]} Rxd5 {[%emt 0:00:01]} 37. Ra7+ {[%emt 0:00:02]} Kf6 {[%emt 0:00:00]} 38. g3 {[%emt 0:00:01]} Rd4 {[%emt 0:00:03]} 39. Kg2 {[%emt 0:00:01]} h5 {[%emt 0:00:01]} 40. Ra6+ {[%emt 0:00:01]} Kf5 {[%emt 0:00:02]} 41. Ra7 {[%emt 0:00:01]} Kf6 {[%emt 0:00:01]} 42. Ra6+ {[%emt 0:00:01]} Kf5 {[%emt 0:00:01]} 43. Ra7 {[%emt 0:00:00]} Kf6 {[%emt 0:00:00]} 1/2-1/2

[Event "CCT Chessable Masters Play-In 2025"]
[Site "Online"]
[Date "2025.02.17"]
[Round "3.67"]
[White "Atabayev, Saparmyrat"]
[Black "Abdusattorov, Nodirbek"]
[Result "1-0"]
[ECO "C41"]
[WhiteElo "2516"]
[BlackElo "2766"]
[PlyCount "101"]
[EventDate "2025.02.13"]
[EventType "swiss"]
[EventCountry "NET"]
[TimeControl "600"]
[WhiteClock "0:04:15"]
[BlackClock "0:01:32"]

1. e4 {[%emt 0:00:01]} e5 {[%emt 0:00:05]} 2. Nf3 {[%emt 0:00:00]} d6 {[%emt 0:00:04]} 3. d4 {[%emt 0:00:02]} exd4 {[%emt 0:00:00]} 4. Nxd4 {[%emt 0:00:01]} Nf6 {[%emt 0:00:00]} 5. Nc3 {[%emt 0:00:01]} Be7 {[%emt 0:00:01]} 6. Bc4 {[%emt 0:00:04]} O-O {[%emt 0:00:00]} 7. O-O {[%emt 0:00:01]} c6 {[%emt 0:00:06]} 8. a4 {[%emt 0:00:01]} Re8 {[%emt 0:00:08]} 9. Qf3 {[%emt 0:00:04]} Bf8 {[%emt 0:00:06]} 10. Bg5 {[%emt 0:00:11]} Nbd7 {[%emt 0:00:03]} 11. Bb3 {[%emt 0:00:03]} h6 {[%emt 0:00:16]} 12. Bxh6 {[%emt 0:00:43]} gxh6 {[%emt 0:00:18]} 13. Qg3+ {[%emt 0:00:01]} Bg7 {[%emt 0:01:06]} 14. Nf5 {[%emt 0:00:04]} Nh5 {[%emt 0:00:01]} 15. Qg6 {[%emt 0:00:06]} Ne5 {[%emt 0:01:05]} 16. Nxh6+ {[%emt 0:00:13]} Kf8 {[%emt 0:00:02]} 17. Qxh5 {[%emt 0:00:00]} Qf6 {[%emt 0:00:08]} 18. f4 {[%emt 0:00:35]} Nc4 {[%emt 0:00:25]} 19. Nxf7 {[%emt 0:00:13]} Qxf7 {[%emt 0:01:19]} 20. Qxf7+ {[%emt 0:00:01]} Kxf7 {[%emt 0:00:00]} 21. Bxc4+ {[%emt 0:00:01]} Kf8 {[%emt 0:00:00]} 22. e5 {[%emt 0:00:13]} Bf5 {[%emt 0:00:02]} 23. Bd3 {[%emt 0:00:03]} Bxd3 {[%emt 0:00:09]} 24. cxd3 {[%emt 0:00:00]} dxe5 {[%emt 0:00:00]} 25. fxe5+ {[%emt 0:00:01]} Kg8 {[%emt 0:00:00]} 26. d4 {[%emt 0:00:02]} Rad8 {[%emt 0:00:01]} 27. Rad1 {[%emt 0:00:02]} c5 {[%emt 0:00:05]} 28. Ne4 {[%emt 0:00:13]} cxd4 {[%emt 0:00:05]} 29. Nf6+ {[%emt 0:00:01]} Bxf6 {[%emt 0:00:01]} 30. exf6 {[%emt 0:00:00]} Kf7 {[%emt 0:00:01]} 31. Rd3 {[%emt 0:00:04]} Re2 {[%emt 0:00:05]} 32. b3 {[%emt 0:00:24]} Rg8 {[%emt 0:00:08]} 33. g3 {[%emt 0:00:05]} Rh8 {[%emt 0:00:02]} 34. h4 {[%emt 0:00:08]} Rg8 {[%emt 0:00:10]} 35. Rf2 {[%emt 0:00:02]} Re4 {[%emt 0:00:07]} 36. Kh2 {[%emt 0:00:08]} Rge8 {[%emt 0:00:03]} 37. Kh3 {[%emt 0:00:06]} R8e6 {[%emt 0:00:02]} 38. Rdf3 {[%emt 0:00:17]} Rd6 {[%emt 0:00:03]} 39. g4 {[%emt 0:00:18]} d3 {[%emt 0:00:02]} 40. Rd2 {[%emt 0:00:04]} Rdd4 {[%emt 0:00:36]} 41. Rfxd3 {[%emt 0:00:04]} Rb4 {[%emt 0:00:00]} 42. Rg3 {[%emt 0:00:28]} Kxf6 {[%emt 0:00:02]} 43. h5 {[%emt 0:00:01]} Re1 {[%emt 0:00:13]} 44. Rf2+ {[%emt 0:00:02]} Kg7 {[%emt 0:00:04]} 45. Kh4 {[%emt 0:00:03]} Rd4 {[%emt 0:00:09]} 46. Kg5 {[%emt 0:00:03]} Re7 {[%emt 0:00:05]} 47. Rf5 {[%emt 0:00:03]} Kh7 {[%emt 0:00:01]} 48. Kh4 {[%emt 0:00:14]} Rb4 {[%emt 0:00:01]} 49. Rgf3 {[%emt 0:00:07]} Rg7 {[%emt 0:00:02]} 50. R5f4 {[%emt 0:00:01]} Rb6 {[%emt 0:00:56]} 51. Rf7 {[%emt 0:00:02]} 1-0

[Event "CCT Chessable Masters Play-In 2025"]
[Site "Online"]
[Date "2025.02.17"]
[Round "3.68"]
[White "Yoo, Christopher Woojin"]
[Black "Vetokhin, Savva"]
[Result "1-0"]
[ECO "D36"]
[WhiteElo "2588"]
[BlackElo "2533"]
[PlyCount "91"]
[EventDate "2025.02.13"]
[EventType "swiss"]
[EventCountry "NET"]
[TimeControl "600"]
[WhiteClock "0:04:51"]
[BlackClock "0:03:10"]

1. d4 {[%emt 0:00:01]} Nf6 {[%emt 0:00:02]} 2. c4 {[%emt 0:00:01]} e6 {[%emt 0:00:00]} 3. Nc3 {[%emt 0:00:01]} d5 {[%emt 0:00:01]} 4. cxd5 {[%emt 0:00:01]} exd5 {[%emt 0:00:00]} 5. Bg5 {[%emt 0:00:01]} Be7 {[%emt 0:00:00]} 6. e3 {[%emt 0:00:01]} h6 {[%emt 0:00:01]} 7. Bh4 {[%emt 0:00:01]} O-O {[%emt 0:00:00]} 8. Bd3 {[%emt 0:00:01]} c6 {[%emt 0:00:01]} 9. Nge2 {[%emt 0:00:01]} Re8 {[%emt 0:00:01]} 10. Qc2 {[%emt 0:00:06]} Nbd7 {[%emt 0:00:02]} 11. h3 {[%emt 0:00:04]} Ne4 {[%emt 0:00:04]} 12. Bxe7 {[%emt 0:00:02]} Qxe7 {[%emt 0:00:00]} 13. O-O {[%emt 0:00:14]} Ndf6 {[%emt 0:00:04]} 14. Rae1 {[%emt 0:00:01]} Bf5 {[%emt 0:00:10]} 15. f3 {[%emt 0:00:37]} Nxc3 {[%emt 0:00:02]} 16. Nxc3 {[%emt 0:00:00]} Bxd3 {[%emt 0:00:06]} 17. Qxd3 {[%emt 0:00:00]} Rad8 {[%emt 0:00:03]} 18. g4 {[%emt 0:00:10]} Qd6 {[%emt 0:00:04]} 19. Kg2 {[%emt 0:00:02]} c5 {[%emt 0:00:33]} 20. dxc5 {[%emt 0:00:02]} Qxc5 {[%emt 0:00:00]} 21. Qd4 {[%emt 0:00:23]} Qxd4 {[%emt 0:00:34]} 22. exd4 {[%emt 0:00:02]} g5 {[%emt 0:00:00]} 23. f4 {[%emt 0:00:17]} Ne4 {[%emt 0:00:36]} 24. fxg5 {[%emt 0:00:14]} Nxc3 {[%emt 0:00:21]} 25. Rxe8+ {[%emt 0:00:12]} Rxe8 {[%emt 0:00:01]} 26. bxc3 {[%emt 0:00:01]} hxg5 {[%emt 0:00:54]} 27. Rf5 {[%emt 0:00:01]} Re2+ {[%emt 0:00:01]} 28. Kf3 {[%emt 0:00:02]} Rc2 {[%emt 0:00:00]} 29. Rxg5+ {[%emt 0:00:04]} Kf8 {[%emt 0:00:00]} 30. h4 {[%emt 0:00:23]} Rxc3+ {[%emt 0:00:02]} 31. Kf4 {[%emt 0:00:01]} Ra3 {[%emt 0:00:19]} 32. Rxd5 {[%emt 0:00:01]} Rxa2 {[%emt 0:00:00]} 33. Rd8+ {[%emt 0:00:08]} Kg7 {[%emt 0:00:03]} 34. d5 {[%emt 0:00:01]} a5 {[%emt 0:00:05]} 35. Ra8 {[%emt 0:00:07]} b5 {[%emt 0:00:13]} 36. d6 {[%emt 0:00:04]} Rd2 {[%emt 0:00:04]} 37. Ke5 {[%emt 0:00:00]} a4 {[%emt 0:00:03]} 38. h5 {[%emt 0:00:04]} Rd3 {[%emt 0:00:07]} 39. Ra5 {[%emt 0:00:23]} Rb3 {[%emt 0:00:20]} 40. g5 {[%emt 0:00:57]} a3 {[%emt 0:00:05]} 41. Ra7 {[%emt 0:00:03]} b4 {[%emt 0:00:20]} 42. g6 {[%emt 0:00:05]} Re3+ {[%emt 0:00:02]} 43. Kf4 {[%emt 0:00:03]} Rd3 {[%emt 0:00:42]} 44. Rxf7+ {[%emt 0:00:02]} Kg8 {[%emt 0:00:03]} 45. h6 {[%emt 0:00:01]} Rh3 {[%emt 0:00:41]} 46. d7 {[%emt 0:00:03]} 1-0

[Event "CCT Chessable Masters Play-In 2025"]
[Site "Online"]
[Date "2025.02.17"]
[Round "3.69"]
[White "Van Foreest, Jorden"]
[Black "Mekhitarian, Krikor Sevag"]
[Result "1-0"]
[ECO "B30"]
[WhiteElo "2649"]
[BlackElo "2510"]
[PlyCount "69"]
[EventDate "2025.02.13"]
[EventType "swiss"]
[EventCountry "NET"]
[TimeControl "600"]
[WhiteClock "0:07:09"]
[BlackClock "0:00:04"]

1. e4 {[%emt 0:00:10]} c5 {[%emt 0:00:42]} 2. Nf3 {[%emt 0:00:03]} Nc6 {[%emt 0:00:07]} 3. Nc3 {[%emt 0:00:10]} Nf6 {[%emt 0:00:03]} 4. Bb5 {[%emt 0:00:01]} Qc7 {[%emt 0:00:02]} 5. O-O {[%emt 0:00:02]} Nd4 {[%emt 0:00:03]} 6. Re1 {[%emt 0:00:04]} a6 {[%emt 0:00:01]} 7. Bc4 {[%emt 0:00:03]} d6 {[%emt 0:00:44]} 8. h3 {[%emt 0:00:15]} e6 {[%emt 0:00:22]} 9. d3 {[%emt 0:00:11]} b5 {[%emt 0:00:18]} 10. Bb3 {[%emt 0:00:00]} Nxb3 {[%emt 0:00:09]} 11. axb3 {[%emt 0:00:00]} Bb7 {[%emt 0:00:03]} 12. Ne2 {[%emt 0:00:14]} Be7 {[%emt 0:00:23]} 13. Ng3 {[%emt 0:00:00]} O-O {[%emt 0:00:04]} 14. Bf4 {[%emt 0:00:01]} e5 {[%emt 0:00:49]} 15. Bd2 {[%emt 0:00:08]} g6 {[%emt 0:00:05]} 16. Nh2 {[%emt 0:00:15]} d5 {[%emt 0:01:04]} 17. Ng4 {[%emt 0:00:01]} dxe4 {[%emt 0:00:10]} 18. dxe4 {[%emt 0:00:24]} Nxg4 {[%emt 0:02:08]} 19. Qxg4 {[%emt 0:00:02]} Bc8 {[%emt 0:00:01]} 20. Qf3 {[%emt 0:00:07]} f6 {[%emt 0:00:13]} 21. Nf1 {[%emt 0:00:11]} Be6 {[%emt 0:00:12]} 22. Ne3 {[%emt 0:00:01]} c4 {[%emt 0:00:17]} 23. bxc4 {[%emt 0:00:02]} Bxc4 {[%emt 0:00:05]} 24. b3 {[%emt 0:00:03]} Be6 {[%emt 0:00:03]} 25. c4 {[%emt 0:00:01]} bxc4 {[%emt 0:00:14]} 26. bxc4 {[%emt 0:00:00]} Bc5 {[%emt 0:00:29]} 27. Nd5 {[%emt 0:00:02]} Bxd5 {[%emt 0:00:08]} 28. cxd5 {[%emt 0:00:00]} a5 {[%emt 0:00:27]} 29. Rec1 {[%emt 0:00:02]} Qb6 {[%emt 0:00:06]} 30. Rab1 {[%emt 0:00:01]} Qa7 {[%emt 0:00:05]} 31. Bh6 {[%emt 0:00:10]} Rf7 {[%emt 0:00:01]} 32. Rb5 {[%emt 0:00:01]} Bd4 {[%emt 0:00:04]} 33. Rc6 {[%emt 0:00:02]} a4 {[%emt 0:00:02]} 34. Rxf6 {[%emt 0:00:02]} a3 {[%emt 0:00:12]} 35. Ra5 {[%emt 0:00:02]} 1-0